Workbook

Sheet Steuerung
B3: Kurzarbeitsbeihilfe AMSG
B4: Projekte mit Beginn ab 01.10.2023
A30: Version 7.231

Sheet Erläuterungen

Sheet Eingabedaten (hidden)
A2: 5
A3: aktuelle Projektdaten: | E3: Abrechnungsdaten:
A4: Projektnummer | C4: =Min_Projektnummer -> 3953-06-05
E5: Abrechnung von: | F5: 2024-11-01 | G5: 45597
A6: Beginn der Kurzarbeit | C6: =IF(ISBLANK(B14),Stichtag,MAX(B14+1,Stichtag)) -> 2023-10-01 | E6: Abrechnung bis: | F6: =IF(AND(MONTH(F5)=MONTH(EGD_Projektende),YEAR(F5)=YEAR(EGD_Projektende)),EGD_Projektende,DATE(YEAR(F5),MONTH(F5)+1,0)) -> 2024-11-30
A7: Ende der Kurzarbeit | C7: =Stichtag_Ende -> 2999-12-31
A8: besondere SV Beiträge Kurzarbeit ab Monat | C8: =Stichtag -> 2023-10-01
A11: Vorgängerprojekt im Fall einer Verlängerung:
A12: Projektnummer alt
A13: Beginn der Kurzarbeit
A14: Ende der Kurzarbeit
A18: Stichtag:

Sheet Parm (hidden)
A1: Allgemeine Referenzdaten | AA1: 4711_AmS!
A2: MA_Stammdaten_Blatt_prüfen | D2: TRUE
A3: MA_Stammdaten_Blatt_OK | D3: TRUE
A4: tmp_path | B4: Temp Path | D4: c:\tmp\
A5: Max_Personen | B5: Max.Personen | C5: Anzahl | D5: 9999
A6: FW_Tage_im_Monat_Basis | B6: Tage_im_Monat | C6: Anzahl | D6: 30
A7: FW_Tage_im_Monat | B7: Tage_im_Monat | C7: Anzahl | D7: =365/12 -> 30.41666667
A8: FW_Anzahl_Kinder | B8: Anzahl_Kinder | C8: Anzahl | D8: 1
A9: FW_Tage_im_Jahr | B9: Tage_im_Jahr | C9: Anzahl | D9: 365
A10: FW_Wochen_im_Jahr | B10: Wochen_im_Jahr | C10: Anzahl | D10: =ROUND(365/7,2) -> 52.14
A11: FW_Wochen_im_Monat | B11: Wochen_im_Monat | C11: Anzahl | D11: 4.33
A13: Gültigkeit von dem Projektexcel
A14: Stichtag | B14: Stichtag | D14: 2023-10-01
A15: Stichtag_Ende | B15: Stichtag Ende | D15: 2999-12-31
A16: Min_Projektnummer | B16: kleinste Projektnummer | D16: 750000
A17: Max Abrechnungsjahr | B17: bis zu diesem Jahr sind die Referenzwerte hinterlegt | D17: 2024 | F17: => bei einem Abrechnungsjahr darüber werden die Werte von dem letzten Jahr genommen (das sollte aber eigentlich nie der Fall sein)
A19: Referenzwerte zur Berechnung KUA/QUAL | C19: Jahr | D19: 2022 | E19: 2023 | F19: 2024
A20: HBMG_ | C20: Euro | D20: 5670 | E20: 5850 | F20: 6060
A21: GFKG_ | C21: Euro | D21: 485.85 | E21: 500.91 | F21: 518.44
A22: Beitragssatz_DN_ | B22: SV Beitragssatz Dienstnehmer | C22: Prozent | D22: 18.12 | E22: 18.12 | F22: 18.07
A23: Beitragssatz_DG_ | B23: SV Beitragssatz Dienstgeber | C23: Prozent | D23: 21.13 | E23: 21.03 | F23: 20.98
A24: KUA_ALG_SV_Aufschlag | C24: Prozent | D24: 45.3 | E24: 45.3 | F24: 45.3
A25: KUA_DN_Anteil_ | C25: Prozent | D25: 20.91 | E25: 20.97 | F25: 20.96
A26: KUA_DG_Anteil_ | C26: Prozent | D26: 24.39 | E26: 24.33 | F26: 24.34
A27: KUA_ERH_DGSV_AB | C27: Monate | D27: 3 | E27: 3 | F27: 3
A29: QUAL_ALG_SV_Aufschlag | C29: Prozent | D29: 46.5 | E29: 46.5 | F29: 46.4
A30: QUAL_DN_Anteil_ | C30: Prozent | D30: 21.47 | E30: 21.52 | F30: 21.47
A31: QUAL_DG_Anteil_ | C31: Prozent | D31: 25.03 | E31: 24.98 | F31: 24.93
A35: Referenzwerte zur Berechnung ALG Tagsatz | D35: 2022 | E35: 2023 | F35: 2024
A36: ALGTS_FZ_ | B36: Familienzuschlag | C36: Euro | D36: 0.97 | E36: 0.97 | F36: 0.97
A37: ALGTS_AZR_ | B37: Ausgleichszulagenrichtsatz_tgl | C37: Euro | D37: 34.35 | E37: 37.01 | F37: 40.6
A38: ALGTS_Maximum_ | B38: Max_Alg_Tagsatz | C38: Euro | D38: 60.81 | E38: 72.01 | F38: 75.4
A39: ALGTS_Grundbetrag_ | B39: Grundbetrag_Alg | C39: Prozent | D39: 55 | E39: 55 | F39: 55
A40: ALGTS_Obergrenze_FZ_ | B40: Obergrenze_Alg_mit_FZ | C40: Prozent | D40: 67 | E40: 67 | F40: 67
A41: ALGTS_DN_SZ_Freigrenze_ | B41: Freigrenze_DN_SZ | C41: Euro | D41: 2100 | E41: 2100 | F41: 2100
A42: ALGTS_DN_SZ_Freibetrag_ | B42: Freibetrag_DN_SZ | C42: Euro | D42: 620 | E42: 620 | F42: 620
A43: ALGTS_DN_Beitragsssatz_ | B43: Beitragssatz_DN | C43: Prozent | D43: 18.12 | E43: 18.12 | F43: 18.07
A44: ALGTS_DN_Beitragsssatz_SZ_ | B44: Beitragssatz_DN_SZ | C44: Prozent | D44: 17.12 | E44: 17.12 | F44: 17.07
A45: ALGTS_Lohnsteuer_SZ_ | B45: Lohnsteuer_Sonderzahlungen | C45: Prozent | D45: 6 | E45: 6 | F45: 6
A46: ALGTS_Werbungskosten_ | B46: Werbungskosten Pauschale | C46: Euro | D46: 132 | E46: 132 | F46: 132
A47: ALGTS_AVAB_ | B47: Verkehrsabsetzbetrag | C47: Euro | D47: 400 | E47: 421 | F47: 463
A50: Lohnsteuertabellen
A51: LST_2022 | B51: von | D51: 0 | E51: 11000.01 | F51: 18000.01 | G51: 31000.01 | H51: 60000.01 | I51: 90000.01 | J51: 1000000.01
B52: bis | D52: 11000 | E52: 18000 | F52: 31000 | G52: 60000 | H52: 90000 | I52: 1000000 | J52: 9999999
B53: Grenzsteuersatz | D53: 0 | E53: 0.2 | F53: 0.325 | G53: 0.42 | H53: 0.48 | I53: 0.5 | J53: 0.55
B54: AVAB | D54: 0 | E54: 2200 | F54: 4450 | G54: 7395 | H54: 10995 | I54: 12795 | J54: 62795
A56: BERECHNET | B56: allg.Abzug | E56: =ROUND(($D52-$C52)*($E53-$D53),2) -> 2200 | F56: =ROUND(($D52-$C52)*($F53-$D53)+($E52-$E51)*($F53-$E53),2) -> 4450 | G56: =ROUND(($D52-$C52)*($G53-$D53)+($E52-$D52)*($G53-$E53)+($F52-$F51)*($G53-$F53),2) -> 7395 | H56: =ROUND(($D52-$C52)*($H53-$D53)+($E52-$D52)*($H53-$E53)+($F52-$E52)*($H53-$F53)+($G52-G51)*($H53-$G53),2) -> 10995 | I56: =ROUND(($D52-$C52)*(I53-$D53)+($E52-$D52)*(I53-$E53)+($F52-$E52)*(I53-$F53)+($G52-$F52)*(I53-$G53)+($H52-$H51)*(I53-$H53),2) -> 12795 | J56: =ROUND(($D52-$C52)*(J53-$D53)+($E52-$D52)*(J53-$E53)+($F52-$E52)*(J53-$F53)+($G52-$F52)*(J53-$G53)+($H52-$G52)*(J53-$H53)+($I52-$I51)*(J53-$I53),2) -> 62795
A58: LST_2023 | B58: von | D58: 0 | E58: 11693.01 | F58: 19134.01 | G58: 32075.01 | H58: 62080.01 | I58: 93120.01 | J58: 1000000.01
B59: bis | D59: 11693 | E59: 19134 | F59: 32075 | G59: 62080 | H59: 93120 | I59: 1000000 | J59: 9999999
B60: Grenzsteuersatz | D60: 0 | E60: 0.2 | F60: 0.3 | G60: 0.41 | H60: 0.48 | I60: 0.5 | J60: 0.55
B61: allg.Abzug | D61: 0 | E61: 2338.6 | F61: 4252 | G61: 7780.25 | H61: 12125.85 | I61: 13988.25 | J61: 63988.25
A63: BERECHNET | B63: allg.Abzug | E63: =ROUND(($D59-$C59)*($E60-$D60),2) -> 2338.6 | F63: =ROUND(($D59-$C59)*($F60-$D60)+($E59-$E58)*($F60-$E60),2) -> 4252 | G63: =ROUND(($D59-$C59)*($G60-$D60)+($E59-$D59)*($G60-$E60)+($F59-$F58)*($G60-$F60),2) -> 7780.25 | H63: =ROUND(($D59-$C59)*($H60-$D60)+($E59-$D59)*($H60-$E60)+($F59-$E59)*($H60-$F60)+($G59-G58)*($H60-$G60),2) -> 12125.85 | I63: =ROUND(($D59-$C59)*(I60-$D60)+($E59-$D59)*(I60-$E60)+($F59-$E59)*(I60-$F60)+($G59-$F59)*(I60-$G60)+($H59-$H58)*(I60-$H60),2) -> 13988.25 | J63: =ROUND(($D59-$C59)*(J60-$D60)+($E59-$D59)*(J60-$E60)+($F59-$E59)*(J60-$F60)+($G59-$F59)*(J60-$G60)+($H59-$G59)*(J60-$H60)+($I59-$I58)*(J60-$I60),2) -> 63988.25
A65: LST_2024 | B65: von | D65: 0 | E65: 12816.01 | F65: 20818.01 | G65: 34513.01 | H65: 66612.01 | I65: 99266.01 | J65: 1000000.01
B66: bis | D66: 12816 | E66: 20818 | F66: 34513 | G66: 66612 | H66: 99266 | I66: 1000000 | J66: 9999999
B67: Grenzsteuersatz | D67: 0 | E67: 0.2 | F67: 0.3 | G67: 0.4 | H67: 0.48 | I67: 0.5 | J67: 0.55
B68: allg.Abzug | D68: 0 | E68: 2563.2 | F68: 4645 | G68: 8096.3 | H68: 13425.26 | I68: 15410.58 | J68: 65410.58
A70: BERECHNET | B70: allg.Abzug | E70: =ROUND(($D66-$C66)*($E67-$D67),2) -> 2563.2 | F70: =ROUND(($D66-$C66)*($F67-$D67)+($E66-$E65)*($F67-$E67),2) -> 4645 | G70: =ROUND(($D66-$C66)*($G67-$D67)+($E66-$D66)*($G67-$E67)+($F66-$F65)*($G67-$F67),2) -> 8096.3 | H70: =ROUND(($D66-$C66)*($H67-$D67)+($E66-$D66)*($H67-$E67)+($F66-$E66)*($H67-$F67)+($G66-G65)*($H67-$G67),2) -> 13425.26 | I70: =ROUND(($D66-$C66)*(I67-$D67)+($E66-$D66)*(I67-$E67)+($F66-$E66)*(I67-$F67)+($G66-$F66)*(I67-$G67)+($H66-$H65)*(I67-$H67),2) -> 15410.58 | J70: =ROUND(($D66-$C66)*(J67-$D67)+($E66-$D66)*(J67-$E67)+($F66-$E66)*(J67-$F67)+($G66-$F66)*(J67-$G67)+($H66-$G66)*(J67-$H67)+($I66-$I65)*(J67-$I67),2) -> 65410.58

Sheet MA-Stammdaten
A1: 1 | B1: 2 | C1: 3 | D1: 4 | E1: 5 | F1: 6 | G1: 7 | H1: 8 | I1: 9 | J1: 10 | K1: 11 | L1: 12 | M1: 13 | N1: 14 | O1: 15 | P1: 16
A2: SV-Nummer | B2: Familienname | C2: Vorname | D2: Bruttoentgelt vor Kurzarbeit in Euro pro Monat | E2: Normalarbeitszeit vor Kurzarbeit in Stunden pro Woche | F2: Normalarbeitszeitstunden | G2: Feiertage in Stunden | H2: Stunden für die Ersatzleistungen gebühren | I2: geleistete Arbeitsstunden | J2: konsumierter Urlaub | K2: konsumiertes Zeitguthaben/sonstige Dienstverhinderungen | L2: Entgeltfortzahlung für Krankenstand | M2: geleistete Überstunden | N2: davon verrechnete Ausfallstunden für Qualifizierungsunterstützung | O2: Abrechnungszeitraum von | P2: Abrechnungszeitraum bis

Sheet Muster Abrechnung (hidden)
A1: 2023-10-01 | B1: 2023-10-31 | AB1: =IF(YEAR($A$1)>=MAX_JAHR_REFDATEN,MAX_JAHR_REFDATEN,YEAR($A$1)) -> 2023 | AC1: =IF(AND(DAY($A$1)=1,DAY(EOMONTH($B$1,0))=DAY($B$1)),30,_xlfn.DAYS($B$1,$A$1)+1) -> 30 | AD1: =IF(AND(EGD_erh_DGSV_Ab<=$A$1,EGD_erh_DGSV_Ab>0),"J","N") -> N
A2: SV-Nummer | B2: Familienname | C2: Vorname | D2: Bruttoentgelt vor Kurzarbeit in Euro pro Monat | E2: Normalarbeits-zeit vor Kurzarbeit in Stunden pro Woche | F2: Normalarbeits-zeitstunden laut Kollektivvertrag/ Arbeitsvertrag in Stunden im Abrechnungs-zeitraum | G2: Feiertage in Stunden im Abrechnungs-zeitraum | H2: Stunden, für die Ersatzleistungen gebühren in Stunden im Abrechnungs-zeitraum | I2: geleistete Arbeitsstunden in Stunden im Abrechnungs-zeitraum | J2: konsumierter Urlaub in Stunden im Abrechnungs-zeitraum | K2: konsumiertes Zeitguthaben/ sonstige Dienst-verhinderungen in Stunden im Abrechnungs-zeitraum | L2: Entgeltfortzahlung für Krankenstand in der geplanten Arbeitszeit in Stunden im Abrechnungs-zeitraum | M2: errechnete Ausfallstunden in Stunden im Abrechnungs-zeitraum | N2: geleistete Überstunden in Stunden im Abrechnungs-zeitraum | O2: verrechnete Ausfallstunden in Stunden im Abrechnungs-zeitraum | P2: davon verrechnete Ausfallstunden für Qualifizierungs-unterstützung in Stunden im Abrechnungs-zeitraum | Q2: verrechnete Ausfallstunden für Kurzarbeits-unterstützung in Stunden im Abrechnungs-zeitraum | R2: verrechnete Kurzarbeits-unterstützung in Euro für den Abrechnungs-zeitraum | S2: DG-SV Kurzarbeits-unterstützung in Euro für den Abrechnungs-zeitraum | T2: besondere SV Beiträge Kurzarbeit in Euro für den Abrechnungs-zeitraum | U2: verrechnete Qualifizierungs-unterstützung in Euro für den Abrechnungs-zeitraum | V2: DG-SV Qualifizierungs-unterstützung in Euro für den Abrechnungs-zeitraum | W2: besondere SV Beiträge Kurzarbeit mit Qualifizierung in Euro für den Abrechnungs-zeitraum | X2: verrechnete Beihilfe gesamt in Euro für den Abrechnungs-zeitraum | Y2: Abrechnungs- zeitraum von | Z2: Abrechnungs- zeitraum bis | AB2: SV mtl. | AC2: BMGL LST jährlich | AD2: LST jährlich | AE2: SZ jährlich | AF2: SV SZ jährlich | AG2: Netto inkl. SZ täglich | AH2: ALG Tagsatz KUA | AI2: Differenz fiktive Bem.grundlage
M3: =IF(ISNUMBER($F3),ROUND(ROUND($F3,2)-ROUND($G3,2)-ROUND($H3,2)-ROUND($I3,2)-ROUND($J3,2)-ROUND($K3,2)-ROUND($L3,2),2),0) -> 0 | O3: =IF(ISNUMBER($M3),MAX(ROUND(ROUND($M3,2)-ROUND($N3,2),2),0),0) -> 0 | Q3: =IF(ISNUMBER($O3),MAX(ROUND(ROUND($O3,2)-ROUND($P3,2),2),0),0) -> 0 | R3: =ROUND($Q3*($AH3*FW_Tage_im_Jahr/FW_Wochen_im_Jahr/$E3)*((100+KUA_DN_Anteil_2022)/100),2) ->  | S3: =ROUND($Q3*($AH3*FW_Tage_im_Jahr/FW_Wochen_im_Jahr/$E3)*(KUA_DG_Anteil_2022/100),2) ->  | T3: =IF($AD$1="J",ROUND($AI3*(Beitragssatz_DN_2022+Beitragssatz_DG_2022)/100,2)-$W3,0) -> 0 | U3: =ROUND($P3*($AH3*1.15*FW_Tage_im_Jahr/FW_Wochen_im_Jahr/$E3)*((100+QUAL_DN_Anteil_2022)/100),2) ->  | V3: =ROUND($P3*($AH3*1.15*FW_Tage_im_Jahr/FW_Wochen_im_Jahr/$E3)*(QUAL_DG_Anteil_2022/100),2) ->  | W3: =IF(ROUND($P3+$Q3,2)=0,0,ROUND((($AI3*(Beitragssatz_DN_2022+Beitragssatz_DG_2022)/100)/($P3+$Q3))*$P3,2)) -> 0 | X3: =SUM(R3:W3) ->  | AB3: =ROUNDDOWN(ROUND($D3,2)*ALGTS_DN_Beitragsssatz_2022/100,2) -> 0 | AC3: =MAX(0,(ROUND($D3,2)-$AB3)*12-ALGTS_Werbungskosten_2022) -> 0 | AD3: =MAX(0,ROUNDDOWN($AC3*INDEX(LST_JAHR_2022,3,MATCH($AC3,OFFSET(LST_JAHR_2022,0,0,1),1))-INDEX(LST_JAHR_2022,4,MATCH($AC3,OFFSET(LST_JAHR_2022,0,0,1),1)),2)-ALGTS_AVAB_2022) -> 0 | AE3: =ROUNDDOWN(ROUND($D3,2)/12,2)*2*12 -> 0 | AF3: =ROUNDDOWN($AE3*(ALGTS_DN_Beitragsssatz_SZ_2022/100),2) -> 0 | AG3: =ROUNDDOWN((ROUNDDOWN(((ROUND($D3,2)-$AB3)*12-$AD3)/12,2)+ROUNDDOWN(($AE3-$AF3-ROUNDDOWN(IF($AE3<=ALGTS_DN_SZ_Freigrenze_2022,0,($AE3-$AF3-ALGTS_DN_SZ_Freibetrag_2022)*(ALGTS_Lohnsteuer_SZ_2022/100)),2))/12,2))/FW_Tage_im_Monat,2) -> 0 | AH3: =IF(ROUND($D3,2)<=GFKG_2022,0,ROUND(IF($AG3*(ALGTS_Grundbetrag_2022/100)>ALGTS_AZR_2022,MIN($AG3*(ALGTS_Grundbetrag_2022/100),ALGTS_Maximum_2022)+ALGTS_FZ_2022,MIN(ALGTS_AZR_2022+ALGTS_FZ_2022,$AG3*(ALGTS_Obergrenze_FZ_2022/100))),2)) -> 0 | AI3: =IF(ROUND($D3,2)<=GFKG_2022,0,MAX(0,(ROUND(MIN(ROUND($D3,2),HBMG_2022)/FW_Tage_im_Monat_Basis*$AC$1,2)-$R3-$U3-ROUND(($F3-$O3)*ROUND($D3,2)/FW_Wochen_im_Monat/$E3,2)))) -> 0
M4: =IF(ISNUMBER($F4),ROUND(ROUND($F4,2)-ROUND($G4,2)-ROUND($H4,2)-ROUND($I4,2)-ROUND($J4,2)-ROUND($K4,2)-ROUND($L4,2),2),0) -> 0 | O4: =IF(ISNUMBER($M4),MAX(ROUND(ROUND($M4,2)-ROUND($N4,2),2),0),0) -> 0 | Q4: =IF(ISNUMBER($O4),MAX(ROUND(ROUND($O4,2)-ROUND($P4,2),2),0),0) -> 0 | R4: =ROUND($Q4*($AH4*FW_Tage_im_Jahr/FW_Wochen_im_Jahr/$E4)*((100+INDIRECT(CONCATENATE("KUA_DN_Anteil_",$AB$1)))/100),2) ->  | S4: =ROUND($Q4*($AH4*FW_Tage_im_Jahr/FW_Wochen_im_Jahr/$E4)*(INDIRECT(CONCATENATE("KUA_DG_Anteil_",$AB$1))/100),2) ->  | T4: =IF($AD$1="J",ROUND($AI4*(INDIRECT(CONCATENATE("Beitragssatz_DN_",$AB$1))+INDIRECT(CONCATENATE("Beitragssatz_DG_",$AB$1)))/100,2)-$W4,0) -> 0 | U4: =ROUND($P4*($AH4*1.15*FW_Tage_im_Jahr/FW_Wochen_im_Jahr/$E4)*((100+INDIRECT(CONCATENATE("QUAL_DN_Anteil_",$AB$1)))/100),2) ->  | V4: =ROUND($P4*($AH4*1.15*FW_Tage_im_Jahr/FW_Wochen_im_Jahr/$E4)*(INDIRECT(CONCATENATE("QUAL_DG_Anteil_",$AB$1))/100),2) ->  | W4: =IF(ROUND($P4+$Q4,2)=0,0,ROUND((($AI4*(INDIRECT(CONCATENATE("Beitragssatz_DN_",$AB$1))+INDIRECT(CONCATENATE("Beitragssatz_DG_",$AB$1)))/100)/($P4+$Q4))*$P4,2)) -> 0 | X4: =SUM(R4:W4) ->  | AB4: =ROUNDDOWN(ROUND($D4,2)*(INDIRECT(CONCATENATE("ALGTS_DN_Beitragsssatz_",$AB$1))/100),2) -> 0 | AC4: =MAX(0,(ROUND($D4,2)-$AB4)*12-INDIRECT(CONCATENATE("ALGTS_Werbungskosten_",$AB$1))) -> 0 | AD4: =MAX(0,ROUNDDOWN($AC4*INDEX(INDIRECT(CONCATENATE("LST_JAHR_",$AB$1)),3,MATCH($AC4,OFFSET(INDIRECT(CONCATENATE("LST_JAHR_",$AB$1)),0,0,1),1))-INDEX(INDIRECT(CONCATENATE("LST_JAHR_",$AB$1)),4,MATCH($AC4,OFFSET(INDIRECT(CONCATENATE("LST_JAHR_",$AB$1)),0,0,1),1)),2)-INDIRECT(CONCATENATE("ALGTS_AVAB_",$AB$1))) -> 0 | AE4: =ROUNDDOWN(ROUND($D4,2)/12,2)*2*12 -> 0 | AF4: =ROUNDDOWN($AE4*(INDIRECT(CONCATENATE("ALGTS_DN_Beitragsssatz_SZ_",$AB$1))/100),2) -> 0 | AG4: =ROUNDDOWN((ROUNDDOWN(((ROUND($D4,2)-$AB4)*12-$AD4)/12,2)+ROUNDDOWN(($AE4-$AF4-ROUNDDOWN(IF($AE4<=INDIRECT(CONCATENATE("ALGTS_DN_SZ_Freigrenze_",$AB$1)),0,($AE4-$AF4-INDIRECT(CONCATENATE("ALGTS_DN_SZ_Freibetrag_",$AB$1)))*(INDIRECT(CONCATENATE("ALGTS_Lohnsteuer_SZ_",$AB$1))/100)),2))/12,2))/FW_Tage_im_Monat,2) -> 0 | AH4: =IF(ROUND($D4,2)<=INDIRECT(CONCATENATE("GFKG_",$AB$1)),0,ROUND(IF($AG4*(INDIRECT(CONCATENATE("ALGTS_Grundbetrag_",$AB$1))/100)>INDIRECT(CONCATENATE("ALGTS_AZR_",$AB$1)),MIN($AG4*(INDIRECT(CONCATENATE("ALGTS_Grundbetrag_",$AB$1))/100),INDIRECT(CONCATENATE("ALGTS_Maximum_",$AB$1)))+INDIRECT(CONCATENATE("ALGTS_FZ_",$AB$1)),MIN(INDIRECT(CONCATENATE("ALGTS_AZR_",$AB$1))+INDIRECT(CONCATENATE("ALGTS_FZ_",$AB$1)),$AG4*(INDIRECT(CONCATENATE("ALGTS_Obergrenze_FZ_",$AB$1))/100))),2)) -> 0 | AI4: =IF(ROUND($D4,2)<=INDIRECT(CONCATENATE("GFKG_",$AB$1)),0,MAX(0,(ROUND(MIN(ROUND($D4,2),INDIRECT(CONCATENATE("HBMG_",$AB$1)))/FW_Tage_im_Monat_Basis*$AC$1,2)-$R4-$U4-ROUND(($F4-$O4)*ROUND($D4,2)/FW_Wochen_im_Monat/$E4,2)))) -> 0

Sheet Muster Stammdaten (hidden)
A1: 1 | B1: 2 | C1: 3 | D1: 4 | E1: 5 | F1: 6 | G1: 7 | H1: 8 | I1: 9 | J1: 10 | K1: 11 | L1: 12 | M1: 13 | N1: 14 | O1: 15 | P1: 16
A2: SV-Nummer | B2: Familienname | C2: Vorname | D2: Bruttoentgelt vor Kurzarbeit in Euro pro Monat | E2: Normalarbeitszeit vor Kurzarbeit in Stunden pro Woche | F2: Normalarbeitszeitstunden | G2: Feiertage in Stunden | H2: Stunden für die Ersatzleistungen gebühren | I2: geleistete Arbeitsstunden | J2: konsumierter Urlaub | K2: konsumiertes Zeitguthaben/sonstige Dienstverhinderungen | L2: Entgeltfortzahlung für Krankenstand | M2: geleistete Überstunden | N2: davon verrechnete Ausfallstunden für Qualifizierungsunterstützung | O2: Abrechnungszeitraum von | P2: Abrechnungszeitraum bis
